[Event "Titled Tuesday Blitz May 03 Early 2022"]
[White "Rohith Krishna S"]
[Black "Donchenko, Alexander"]
[WhiteFideId "46617051"]
[BlackFideId "24603295"]
[WhiteElo "2117"]
[BlackElo "2539"]
[Result "0-1"]
[Round "08"]
[TimeControl "180+1"]
[Date "2022.05.03"]
[WhiteClock "0:00:29"]
[BlackClock "0:00:18"]

1. e4 {[%clk 0:03:00]}  c6 {[%clk 0:02:58]} 2. d4 {[%clk 0:02:56]}  d5 {[%clk 0:02:59]} 3. e5 {[%clk 0:02:57]}  Bf5 {[%clk 0:02:59]} 4. c3 {[%clk 0:02:57]}  e6 {[%clk 0:02:59]} 5. Bd3 {[%clk 0:02:58]}  Bg6 {[%clk 0:02:59]} 6. Ne2 {[%clk 0:02:57]}  c5 {[%clk 0:02:56]} 7. O-O {[%clk 0:02:57]}  Nc6 {[%clk 0:02:55]} 8. f4 {[%clk 0:02:56]}  Nh6 {[%clk 0:02:54]} 9. Bxg6 {[%clk 0:02:52]}  hxg6 {[%clk 0:02:54]} 10. h3 {[%clk 0:02:45]}  cxd4 {[%clk 0:02:44]} 11. Nxd4 {[%clk 0:02:46]}  Qb6 {[%clk 0:02:35]} 12. Kh2 {[%clk 0:02:16]}  Nf5 {[%clk 0:02:31]} 13. Nb3 {[%clk 0:01:55]}  a5 {[%clk 0:02:23]} 14. a4 {[%clk 0:01:55]}  Be7 {[%clk 0:02:06]} 15. Na3 {[%clk 0:01:51]}  Bxa3 {[%clk 0:02:02]} 16. Rxa3 {[%clk 0:01:50]}  Rc8 {[%clk 0:01:55]} 17. Qe1 {[%clk 0:01:46]}  Qa6 {[%clk 0:01:36]} 18. g4 {[%clk 0:01:39]}  Nfe7 {[%clk 0:01:34]} 19. Be3 {[%clk 0:01:39]}  g5 {[%clk 0:01:21]} 20. Nc5 {[%clk 0:01:30]}  Qa8 {[%clk 0:01:20]} 21. Nd3 {[%clk 0:01:27]}  gxf4 {[%clk 0:01:15]} 22. Bxf4 {[%clk 0:01:28]}  Ng6 {[%clk 0:01:15]} 23. Bg3 {[%clk 0:01:28]}  Qa6 {[%clk 0:01:15]} 24. Rf3 {[%clk 0:01:23]}  d4 {[%clk 0:01:01]} 25. b4 {[%clk 0:01:17]}  Qc4 {[%clk 0:00:54]} 26. b5 {[%clk 0:01:10]}  Nce7 {[%clk 0:00:54]} 27. cxd4 {[%clk 0:01:10]}  Qxd4 {[%clk 0:00:54]} 28. Bf2 {[%clk 0:01:01]}  Rc2 {[%clk 0:00:53]} 29. Kg1 {[%clk 0:01:01]}  Qc4 {[%clk 0:00:49]} 30. Qxa5 {[%clk 0:00:53]}  O-O {[%clk 0:00:42]} 31. Qb4 {[%clk 0:00:53]}  Qc7 {[%clk 0:00:38]} 32. Qd6 {[%clk 0:00:48]}  Nd5 {[%clk 0:00:25]} 33. Qxc7 {[%clk 0:00:45]}  Rxc7 {[%clk 0:00:26]} 34. a5 {[%clk 0:00:40]}  Ra8 {[%clk 0:00:25]} 35. a6 {[%clk 0:00:39]}  bxa6 {[%clk 0:00:26]} 36. bxa6 {[%clk 0:00:40]}  Rc3 {[%clk 0:00:21]} 37. Rxc3 {[%clk 0:00:20]}  Nxc3 {[%clk 0:00:22]} 38. Nb4 {[%clk 0:00:21]}  Nd5 {[%clk 0:00:17]} 39. Nxd5 {[%clk 0:00:20]}  exd5 {[%clk 0:00:18]} 40. a7 {[%clk 0:00:20]}  Nxe5 {[%clk 0:00:19]} 41. Rb3 {[%clk 0:00:21]}  Nc6 {[%clk 0:00:19]} 42. Rb7 {[%clk 0:00:22]}  d4 {[%clk 0:00:18]} 43. Rb6 {[%clk 0:00:21]}  Nxa7 {[%clk 0:00:18]} 44. Ra6 {[%clk 0:00:22]}  d3 {[%clk 0:00:19]} 45. Kf1 {[%clk 0:00:20]}  d2 {[%clk 0:00:16]} 46. Ke2 {[%clk 0:00:20]}  Rd8 {[%clk 0:00:17]} 47. Kd1 {[%clk 0:00:20]}  Nb5 {[%clk 0:00:17]} 48. Rc6 {[%clk 0:00:20]}  Rd3 {[%clk 0:00:11]} 49. h4 {[%clk 0:00:17]}  Nc3+ {[%clk 0:00:08]} 50. Rxc3 {[%clk 0:00:18]}  Rxc3 {[%clk 0:00:09]} 51. Kxd2 {[%clk 0:00:19]}  Rc4 {[%clk 0:00:09]} 52. g5 {[%clk 0:00:18]}  g6 {[%clk 0:00:09]} 53. Ke3 {[%clk 0:00:18]}  Kf8 {[%clk 0:00:09]} 54. Kd3 {[%clk 0:00:18]}  Rg4 {[%clk 0:00:08]} 55. Ke3 {[%clk 0:00:18]}  Ke7 {[%clk 0:00:09]} 56. Kf3 {[%clk 0:00:18]}  Rc4 {[%clk 0:00:09]} 57. Be3 {[%clk 0:00:19]}  Ke6 {[%clk 0:00:10]} 58. Bf2 {[%clk 0:00:20]}  Kf5 {[%clk 0:00:10]} 59. Ke3 {[%clk 0:00:20]}  Kg4 {[%clk 0:00:09]} 60. Be1 {[%clk 0:00:20]}  Kh3 {[%clk 0:00:09]} 61. Kf3 {[%clk 0:00:19]}  Rxh4 {[%clk 0:00:08]} 62. Bxh4 {[%clk 0:00:20]}  Kxh4 {[%clk 0:00:09]} 63. Kf4 {[%clk 0:00:20]}  Kh5 {[%clk 0:00:10]} 64. Kf3 {[%clk 0:00:20]}  Kxg5 {[%clk 0:00:11]} 65. Kg3 {[%clk 0:00:19]}  Kf5 {[%clk 0:00:12]} 66. Kf3 {[%clk 0:00:20]}  g5 {[%clk 0:00:12]} 67. Kg3 {[%clk 0:00:21]}  g4 {[%clk 0:00:13]} 68. Kg2 {[%clk 0:00:21]}  Kf4 {[%clk 0:00:13]} 69. Kf2 {[%clk 0:00:22]}  g3+ {[%clk 0:00:14]} 70. Kg2 {[%clk 0:00:23]}  Kg4 {[%clk 0:00:15]} 71. Kg1 {[%clk 0:00:24]}  Kf3 {[%clk 0:00:15]} 72. Kf1 {[%clk 0:00:25]}  g2+ {[%clk 0:00:15]} 73. Kg1 {[%clk 0:00:26]}  f6 {[%clk 0:00:16]} 74. Kh2 {[%clk 0:00:27]}  Kf2 {[%clk 0:00:16]} 75. Kh3 {[%clk 0:00:27]}  g1=Q {[%clk 0:00:17]} 76. Kh4 {[%clk 0:00:28]}  Qg5+ {[%clk 0:00:17]} 77. Kh3 {[%clk 0:00:29]}  Qg3# {[%clk 0:00:18]} 0-1


[Site "https://www.chess.com"]

[Event "Titled Tuesday Blitz May 03 Early 2022"]
[White "Rom, Jasper"]
[Black "Reprintsev, Alexander"]
[WhiteFideId "2023733"]
[BlackFideId "14100541"]
[WhiteElo "2233"]
[BlackElo "2108"]
[Result "0-1"]
[Round "08"]
[TimeControl "180+1"]
[Date "2022.05.03"]
[WhiteClock "0:00:01"]
[BlackClock "0:01:42"]

1. e4 {[%clk 0:03:00]}  d5 {[%clk 0:02:59]} 2. exd5 {[%clk 0:03:00]}  Qxd5 {[%clk 0:02:59]} 3. Nc3 {[%clk 0:03:00]}  Qa5 {[%clk 0:02:59]} 4. d4 {[%clk 0:03:00]}  Nf6 {[%clk 0:02:59]} 5. Nf3 {[%clk 0:03:00]}  Nc6 {[%clk 0:02:59]} 6. Bb5 {[%clk 0:02:52]}  Ne4 {[%clk 0:02:58]} 7. O-O {[%clk 0:02:24]}  Nxc3 {[%clk 0:02:58]} 8. Bxc6+ {[%clk 0:02:24]}  bxc6 {[%clk 0:02:58]} 9. Qd2 {[%clk 0:02:14]}  Bg4 {[%clk 0:02:50]} 10. Qxc3 {[%clk 0:01:59]}  Qxc3 {[%clk 0:02:49]} 11. bxc3 {[%clk 0:02:00]}  Bxf3 {[%clk 0:02:48]} 12. gxf3 {[%clk 0:02:00]}  Rb8 {[%clk 0:02:47]} 13. Bf4 {[%clk 0:01:55]}  Kd7 {[%clk 0:02:47]} 14. Rab1 {[%clk 0:01:55]}  Rb6 {[%clk 0:02:47]} 15. c4 {[%clk 0:01:51]}  g5 {[%clk 0:02:47]} 16. Be3 {[%clk 0:01:40]}  Bg7 {[%clk 0:02:42]} 17. c5 {[%clk 0:01:38]}  Ra6 {[%clk 0:02:40]} 18. Rb2 {[%clk 0:01:32]}  e5 {[%clk 0:02:28]} 19. c3 {[%clk 0:01:32]}  h6 {[%clk 0:02:19]} 20. Rd1 {[%clk 0:01:30]}  Ke6 {[%clk 0:02:16]} 21. Rb7 {[%clk 0:01:25]}  Rc8 {[%clk 0:02:15]} 22. Rd2 {[%clk 0:01:22]}  Ra3 {[%clk 0:02:14]} 23. c4 {[%clk 0:00:51]}  exd4 {[%clk 0:02:12]} 24. Bxd4 {[%clk 0:00:51]}  Bxd4 {[%clk 0:02:12]} 25. Rxd4 {[%clk 0:00:51]}  Rxa2 {[%clk 0:02:12]} 26. Re4+ {[%clk 0:00:48]}  Kf6 {[%clk 0:02:12]} 27. Kg2 {[%clk 0:00:48]}  a5 {[%clk 0:02:12]} 28. Ra7 {[%clk 0:00:44]}  a4 {[%clk 0:02:12]} 29. Ra6 {[%clk 0:00:45]}  Kg7 {[%clk 0:01:58]} 30. Rxc6 {[%clk 0:00:43]}  Rb8 {[%clk 0:01:56]} 31. Re1 {[%clk 0:00:12]}  Rb7 {[%clk 0:01:54]} 32. Ra6 {[%clk 0:00:11]}  Rbb2 {[%clk 0:01:53]} 33. Rf1 {[%clk 0:00:10]}  Rc2 {[%clk 0:01:51]} 34. Ra7 {[%clk 0:00:05]}  Rxc4 {[%clk 0:01:50]} 35. Rxc7 {[%clk 0:00:05]}  a3 {[%clk 0:01:50]} 36. Kg3 {[%clk 0:00:02]}  Kg6 {[%clk 0:01:49]} 37. Re1 {[%clk 0:00:02]}  h5 {[%clk 0:01:48]} 38. Rd1 {[%clk 0:00:02]}  h4+ {[%clk 0:01:47]} 39. Kg2 {[%clk 0:00:02]}  Rcc2 {[%clk 0:01:46]} 40. Rd6+ {[%clk 0:00:02]}  f6 {[%clk 0:01:47]} 41. Rcc6 {[%clk 0:00:01]}  Rxf2+ {[%clk 0:01:47]} 42. Kg1 {[%clk 0:00:02]}  Rg2+ {[%clk 0:01:42]} 43. Kf1 {[%clk 0:00:01]}  Raf2+ {[%clk 0:01:42]} 44. Ke1 {[%clk 0:00:01]}  Rxf3 {[%clk 0:01:43]} 45. Ra6 {[%clk 0:00:01]}  Rxh2 {[%clk 0:01:42]} 0-1


[Site "https://www.chess.com"]

[Event "Titled Tuesday Blitz May 03 Early 2022"]
[White "Rustemov, Alexander"]
[Black "Bartel, Michal"]
[WhiteFideId "4119002"]
[BlackFideId "1119257"]
[WhiteElo "2716"]
[BlackElo "2211"]
[Result "0-1"]
[Round "08"]
[TimeControl "180+1"]
[Date "2022.05.03"]
[WhiteClock "0:00:11"]
[BlackClock "0:02:03"]

1. d4 {[%clk 0:03:00]}  Nf6 {[%clk 0:02:59]} 2. c4 {[%clk 0:03:00]}  c5 {[%clk 0:03:00]} 3. d5 {[%clk 0:03:00]}  e6 {[%clk 0:03:00]} 4. Nc3 {[%clk 0:02:59]}  exd5 {[%clk 0:03:00]} 5. cxd5 {[%clk 0:03:00]}  d6 {[%clk 0:03:01]} 6. e4 {[%clk 0:03:00]}  g6 {[%clk 0:03:02]} 7. h3 {[%clk 0:03:01]}  Bg7 {[%clk 0:03:02]} 8. Bd3 {[%clk 0:03:01]}  O-O {[%clk 0:03:02]} 9. Nf3 {[%clk 0:03:02]}  Re8 {[%clk 0:03:02]} 10. O-O {[%clk 0:03:02]}  c4 {[%clk 0:03:02]} 11. Bxc4 {[%clk 0:03:02]}  Nxe4 {[%clk 0:03:03]} 12. Nxe4 {[%clk 0:03:02]}  Rxe4 {[%clk 0:03:03]} 13. Bg5 {[%clk 0:03:03]}  Qb6 {[%clk 0:03:03]} 14. Bd3 {[%clk 0:03:01]}  Re8 {[%clk 0:03:02]} 15. Re1 {[%clk 0:03:00]}  Bd7 {[%clk 0:03:03]} 16. Rxe8+ {[%clk 0:02:49]}  Bxe8 {[%clk 0:03:04]} 17. Qe2 {[%clk 0:02:48]}  Nd7 {[%clk 0:03:03]} 18. Rb1 {[%clk 0:02:25]}  Rc8 {[%clk 0:03:00]} 19. b3 {[%clk 0:02:24]}  Qa5 {[%clk 0:02:56]} 20. Bc4 {[%clk 0:02:09]}  Nb6 {[%clk 0:02:53]} 21. Be7 {[%clk 0:01:52]}  Nxd5 {[%clk 0:02:50]} 22. Bxd5 {[%clk 0:01:42]}  Qxd5 {[%clk 0:02:50]} 23. Rd1 {[%clk 0:01:42]}  Qb5 {[%clk 0:02:43]} 24. Qe3 {[%clk 0:01:38]}  Qa6 {[%clk 0:02:34]} 25. Qd2 {[%clk 0:01:21]}  Bc6 {[%clk 0:02:30]} 26. Bxd6 {[%clk 0:01:05]}  Bxf3 {[%clk 0:02:28]} 27. gxf3 {[%clk 0:01:05]}  Rd8 {[%clk 0:02:26]} 28. Qb4 {[%clk 0:00:16]}  Bf8 {[%clk 0:02:10]} 29. Bxf8 {[%clk 0:00:16]}  Rxd1+ {[%clk 0:02:10]} 30. Kh2 {[%clk 0:00:16]}  Qf1 {[%clk 0:02:10]} 31. Kg3 {[%clk 0:00:12]}  Qg1+ {[%clk 0:02:10]} 32. Kf4 {[%clk 0:00:12]}  Qxf2 {[%clk 0:02:04]} 33. Bc5 {[%clk 0:00:11]}  Qh4+ {[%clk 0:02:03]} 34. Ke3 {[%clk 0:00:11]}  Qxb4 {[%clk 0:02:03]} 35. Bxb4 {[%clk 0:00:11]}  Rh1 {[%clk 0:02:03]} 0-1


[Site "https://www.chess.com"]

[Event "Titled Tuesday Blitz May 03 Early 2022"]
[White "Sebag, Marie"]
[Black "Khabinets, Ivan"]
[WhiteFideId "617822"]
[BlackFideId "14115980"]
[WhiteElo "2440"]
[BlackElo "2114"]
[Result "1-0"]
[Round "08"]
[TimeControl "180+1"]
[Date "2022.05.03"]
[WhiteClock "0:00:30"]
[BlackClock "0:00:12"]

1. e4 {[%clk 0:03:00]}  c5 {[%clk 0:01:20]} 2. Nc3 {[%clk 0:02:59]}  Nc6 {[%clk 0:01:20]} 3. Bb5 {[%clk 0:02:57]}  Nd4 {[%clk 0:01:20]} 4. Nf3 {[%clk 0:02:57]}  e6 {[%clk 0:01:19]} 5. O-O {[%clk 0:02:55]}  a6 {[%clk 0:01:20]} 6. Bd3 {[%clk 0:02:55]}  Nc6 {[%clk 0:01:17]} 7. Rb1 {[%clk 0:02:54]}  Nf6 {[%clk 0:01:18]} 8. a3 {[%clk 0:02:54]}  d5 {[%clk 0:01:18]} 9. exd5 {[%clk 0:02:51]}  Nxd5 {[%clk 0:01:18]} 10. Re1 {[%clk 0:02:31]}  Be7 {[%clk 0:01:17]} 11. Nxd5 {[%clk 0:02:24]}  Qxd5 {[%clk 0:01:18]} 12. Be4 {[%clk 0:02:19]}  Qd7 {[%clk 0:01:06]} 13. b4 {[%clk 0:02:18]}  cxb4 {[%clk 0:01:04]} 14. axb4 {[%clk 0:02:19]}  Nxb4 {[%clk 0:01:03]} 15. Ne5 {[%clk 0:02:08]}  Qc7 {[%clk 0:00:57]} 16. Qh5 {[%clk 0:01:58]}  Bf6 {[%clk 0:00:52]} 17. d4 {[%clk 0:01:37]}  Nxc2 {[%clk 0:00:46]} 18. Bxc2 {[%clk 0:01:29]}  Bxe5 {[%clk 0:00:47]} 19. Qxe5 {[%clk 0:01:19]}  Qxc2 {[%clk 0:00:45]} 20. Qxg7 {[%clk 0:01:17]}  Qxb1 {[%clk 0:00:36]} 21. Qxh8+ {[%clk 0:01:14]}  Kd7 {[%clk 0:00:36]} 22. d5 {[%clk 0:00:57]}  b5 {[%clk 0:00:17]} 23. dxe6+ {[%clk 0:00:56]}  fxe6 {[%clk 0:00:18]} 24. Rd1+ {[%clk 0:00:53]}  Kc6 {[%clk 0:00:17]} 25. Qe8+ {[%clk 0:00:38]}  Kb7 {[%clk 0:00:18]} 26. Qe7+ {[%clk 0:00:33]}  Bd7 {[%clk 0:00:12]} 27. Qxd7+ {[%clk 0:00:32]}  Kb6 {[%clk 0:00:13]} 28. Be3+ {[%clk 0:00:31]}  Ka5 {[%clk 0:00:12]} 29. Rxb1 {[%clk 0:00:30]} 1-0


[Site "https://www.chess.com"]

[Event "Titled Tuesday Blitz May 03 Early 2022"]
[White "Shyaamnikhil P"]
[Black "Lehtosaari, Mauri"]
[WhiteFideId "5024218"]
[BlackFideId "501999"]
[WhiteElo "2329"]
[BlackElo "2533"]
[Result "1/2-1/2"]
[Round "08"]
[TimeControl "180+1"]
[Date "2022.05.03"]
[WhiteClock "0:01:01"]
[BlackClock "0:00:25"]

1. e4 {[%clk 0:03:00]}  d5 {[%clk 0:02:59]} 2. exd5 {[%clk 0:03:00]}  Qxd5 {[%clk 0:03:00]} 3. Nc3 {[%clk 0:02:57]}  Qe5+ {[%clk 0:03:00]} 4. Be2 {[%clk 0:02:57]}  c6 {[%clk 0:03:00]} 5. Nf3 {[%clk 0:02:57]}  Qc7 {[%clk 0:03:00]} 6. O-O {[%clk 0:02:57]}  Bf5 {[%clk 0:02:24]} 7. d4 {[%clk 0:02:51]}  e6 {[%clk 0:02:24]} 8. Ne5 {[%clk 0:02:51]}  Nd7 {[%clk 0:02:24]} 9. g4 {[%clk 0:02:42]}  Bg6 {[%clk 0:02:21]} 10. f4 {[%clk 0:02:40]}  Nxe5 {[%clk 0:02:17]} 11. fxe5 {[%clk 0:02:35]}  O-O-O {[%clk 0:02:09]} 12. Be3 {[%clk 0:02:32]}  Ne7 {[%clk 0:02:03]} 13. a4 {[%clk 0:02:23]}  h5 {[%clk 0:01:52]} 14. h3 {[%clk 0:02:10]}  hxg4 {[%clk 0:01:50]} 15. hxg4 {[%clk 0:02:11]}  Nd5 {[%clk 0:01:48]} 16. Nxd5 {[%clk 0:02:07]}  exd5 {[%clk 0:01:33]} 17. Bd3 {[%clk 0:02:02]}  Qe7 {[%clk 0:01:13]} 18. Bxg6 {[%clk 0:01:49]}  fxg6 {[%clk 0:01:07]} 19. Kg2 {[%clk 0:01:47]}  Qe6 {[%clk 0:01:00]} 20. Bg5 {[%clk 0:01:30]}  Be7 {[%clk 0:00:59]} 21. Bxe7 {[%clk 0:01:29]}  Qxe7 {[%clk 0:01:00]} 22. Qe2 {[%clk 0:01:21]}  Qg5 {[%clk 0:00:54]} 23. Rh1 {[%clk 0:01:19]}  Qf4 {[%clk 0:00:49]} 24. c3 {[%clk 0:01:16]}  a6 {[%clk 0:00:33]} 25. Rxh8 {[%clk 0:01:11]}  Rxh8 {[%clk 0:00:32]} 26. Rh1 {[%clk 0:01:11]}  Rxh1 {[%clk 0:00:31]} 27. Kxh1 {[%clk 0:01:12]}  Qg3 {[%clk 0:00:29]} 28. Qg2 {[%clk 0:01:02]}  Qh4+ {[%clk 0:00:24]} 29. Kg1 {[%clk 0:01:02]}  Qe1+ {[%clk 0:00:24]} 30. Kh2 {[%clk 0:01:01]}  Qh4+ {[%clk 0:00:25]} 31. Kg1 {[%clk 0:01:01]}  Qe1+ {[%clk 0:00:25]} 32. Kh2 {[%clk 0:01:01]}  Qh4+ {[%clk 0:00:25]} 33. Kg1 {[%clk 0:01:01]} 1/2-1/2


[Site "https://www.chess.com"]

[Event "Titled Tuesday Blitz May 03 Early 2022"]
[White "Sirosh, Ilja"]
[Black "Kanyamarala, Trisha"]
[WhiteFideId "4500458"]
[BlackFideId "45004722"]
[WhiteElo "2241"]
[BlackElo "2079"]
[Result "1-0"]
[Round "08"]
[TimeControl "180+1"]
[Date "2022.05.03"]
[WhiteClock "0:01:48"]
[BlackClock "0:01:31"]

1. e4 {[%clk 0:03:00]}  c5 {[%clk 0:02:59]} 2. Nf3 {[%clk 0:02:57]}  d6 {[%clk 0:02:59]} 3. d4 {[%clk 0:02:56]}  cxd4 {[%clk 0:03:00]} 4. Nxd4 {[%clk 0:02:57]}  Nf6 {[%clk 0:02:59]} 5. Nc3 {[%clk 0:02:57]}  Nc6 {[%clk 0:03:00]} 6. Nd5 {[%clk 0:02:56]}  e6 {[%clk 0:02:56]} 7. Nxf6+ {[%clk 0:02:56]}  gxf6 {[%clk 0:02:56]} 8. Nxc6 {[%clk 0:02:54]}  bxc6 {[%clk 0:02:55]} 9. Be2 {[%clk 0:02:53]}  Bb7 {[%clk 0:02:44]} 10. O-O {[%clk 0:02:53]}  Qc7 {[%clk 0:02:36]} 11. c4 {[%clk 0:02:52]}  O-O-O {[%clk 0:02:36]} 12. Be3 {[%clk 0:02:49]}  Kb8 {[%clk 0:02:34]} 13. Qa4 {[%clk 0:02:47]}  c5 {[%clk 0:02:33]} 14. f3 {[%clk 0:02:43]}  h5 {[%clk 0:02:32]} 15. b4 {[%clk 0:02:43]}  h4 {[%clk 0:02:28]} 16. Rab1 {[%clk 0:02:39]}  Ka8 {[%clk 0:02:21]} 17. Rb2 {[%clk 0:02:34]}  Bh6 {[%clk 0:02:17]} 18. Bf2 {[%clk 0:02:30]}  Rhg8 {[%clk 0:02:08]} 19. Rfb1 {[%clk 0:02:29]}  Bc6 {[%clk 0:02:05]} 20. b5 {[%clk 0:02:22]}  Bd7 {[%clk 0:02:00]} 21. Qa3 {[%clk 0:02:08]}  Qb6 {[%clk 0:01:57]} 22. Be1 {[%clk 0:02:08]}  h3 {[%clk 0:01:52]} 23. g3 {[%clk 0:02:03]}  Bf4 {[%clk 0:01:51]} 24. Ba5 {[%clk 0:02:01]}  Qb7 {[%clk 0:01:51]} 25. Bxd8 {[%clk 0:02:00]}  Bxg3 {[%clk 0:01:51]} 26. hxg3 {[%clk 0:01:59]}  Rxg3+ {[%clk 0:01:51]} 27. Kf2 {[%clk 0:01:54]}  Rg2+ {[%clk 0:01:50]} 28. Ke3 {[%clk 0:01:55]}  d5 {[%clk 0:01:49]} 29. b6 {[%clk 0:01:53]}  a6 {[%clk 0:01:44]} 30. cxd5 {[%clk 0:01:54]}  exd5 {[%clk 0:01:43]} 31. Bxa6 {[%clk 0:01:51]}  d4+ {[%clk 0:01:37]} 32. Kd3 {[%clk 0:01:51]}  c4+ {[%clk 0:01:31]} 33. Bxc4+ {[%clk 0:01:52]}  Kb8 {[%clk 0:01:32]} 34. Bc7+ {[%clk 0:01:51]}  Kc8 {[%clk 0:01:32]} 35. Bd5 {[%clk 0:01:51]}  Bc6 {[%clk 0:01:32]} 36. Qf8+ {[%clk 0:01:48]}  Kd7 {[%clk 0:01:31]} 37. Qd8# {[%clk 0:01:48]} 1-0


[Site "https://www.chess.com"]

[Event "Titled Tuesday Blitz May 03 Early 2022"]
[White "Sjugirov, Sanan"]
[Black "Gharibyan, Mamikon"]
[WhiteFideId "4189302"]
[BlackFideId "13308300"]
[WhiteElo "2602"]
[BlackElo "2254"]
[Result "1-0"]
[Round "08"]
[TimeControl "180+1"]
[Date "2022.05.03"]
[WhiteClock "0:00:33"]
[BlackClock "0:00:01"]

1. e4 {[%clk 0:03:00]}  e5 {[%clk 0:02:59]} 2. Nf3 {[%clk 0:03:01]}  Nc6 {[%clk 0:02:58]} 3. Bc4 {[%clk 0:03:01]}  Bc5 {[%clk 0:02:54]} 4. d3 {[%clk 0:03:02]}  Nf6 {[%clk 0:02:54]} 5. c3 {[%clk 0:03:02]}  d6 {[%clk 0:02:53]} 6. Nbd2 {[%clk 0:03:02]}  a5 {[%clk 0:02:46]} 7. h3 {[%clk 0:03:01]}  O-O {[%clk 0:02:43]} 8. Bb3 {[%clk 0:02:58]}  Ba7 {[%clk 0:02:35]} 9. Nf1 {[%clk 0:02:57]}  Ne7 {[%clk 0:02:35]} 10. Ng3 {[%clk 0:02:43]}  Ng6 {[%clk 0:02:34]} 11. O-O {[%clk 0:02:41]}  Re8 {[%clk 0:02:28]} 12. Re1 {[%clk 0:02:40]}  Be6 {[%clk 0:02:16]} 13. Ba4 {[%clk 0:02:37]}  Bd7 {[%clk 0:01:50]} 14. Bc2 {[%clk 0:02:37]}  d5 {[%clk 0:01:48]} 15. Bg5 {[%clk 0:02:35]}  h6 {[%clk 0:01:31]} 16. Bxf6 {[%clk 0:02:34]}  Qxf6 {[%clk 0:01:32]} 17. exd5 {[%clk 0:02:34]}  Nf4 {[%clk 0:01:20]} 18. d4 {[%clk 0:02:25]}  exd4 {[%clk 0:01:18]} 19. Rxe8+ {[%clk 0:02:23]}  Rxe8 {[%clk 0:01:17]} 20. Nxd4 {[%clk 0:02:21]}  Nxd5 {[%clk 0:01:11]} 21. Ndf5 {[%clk 0:02:10]}  Bxf5 {[%clk 0:01:05]} 22. Nxf5 {[%clk 0:02:11]}  c6 {[%clk 0:01:00]} 23. Qf3 {[%clk 0:02:05]}  Qg5 {[%clk 0:00:55]} 24. Nd6 {[%clk 0:02:00]}  Rf8 {[%clk 0:00:51]} 25. Bb3 {[%clk 0:01:47]}  Bb8 {[%clk 0:00:19]} 26. Ne4 {[%clk 0:01:46]}  Qe5 {[%clk 0:00:17]} 27. g3 {[%clk 0:01:46]}  Re8 {[%clk 0:00:17]} 28. Nc5 {[%clk 0:01:35]}  Qe7 {[%clk 0:00:16]} 29. Bxd5 {[%clk 0:01:29]}  cxd5 {[%clk 0:00:17]} 30. Nd3 {[%clk 0:01:30]}  Ba7 {[%clk 0:00:16]} 31. Re1 {[%clk 0:01:29]}  Qd7 {[%clk 0:00:13]} 32. Rxe8+ {[%clk 0:01:29]}  Qxe8 {[%clk 0:00:13]} 33. Qxd5 {[%clk 0:01:29]}  Qe2 {[%clk 0:00:12]} 34. Qxb7 {[%clk 0:01:19]}  Qxd3 {[%clk 0:00:06]} 35. Qxa7 {[%clk 0:01:18]}  Qb1+ {[%clk 0:00:07]} 36. Kg2 {[%clk 0:01:18]}  Qxa2 {[%clk 0:00:05]} 37. Qb7 {[%clk 0:01:11]}  g6 {[%clk 0:00:04]} 38. Qb5 {[%clk 0:01:10]}  a4 {[%clk 0:00:04]} 39. c4 {[%clk 0:01:10]}  h5 {[%clk 0:00:03]} 40. h4 {[%clk 0:01:10]}  Kg7 {[%clk 0:00:03]} 41. Qb4 {[%clk 0:01:07]}  Kg8 {[%clk 0:00:03]} 42. Qc3 {[%clk 0:01:06]}  Kh7 {[%clk 0:00:02]} 43. Qd4 {[%clk 0:01:05]}  Kg8 {[%clk 0:00:02]} 44. c5 {[%clk 0:01:05]}  Qe6 {[%clk 0:00:02]} 45. Qd8+ {[%clk 0:00:37]}  Kh7 {[%clk 0:00:01]} 46. Qd6 {[%clk 0:00:36]}  Qe4+ {[%clk 0:00:01]} 47. Kh2 {[%clk 0:00:37]}  Qf3 {[%clk 0:00:02]} 48. Qd4 {[%clk 0:00:36]}  Qb7 {[%clk 0:00:02]} 49. Qxa4 {[%clk 0:00:33]}  Qxb2 {[%clk 0:00:02]} 50. Qf4 {[%clk 0:00:34]}  Qb3 {[%clk 0:00:01]} 51. c6 {[%clk 0:00:33]}  Qe6 {[%clk 0:00:01]} 52. c7 {[%clk 0:00:33]}  Qd7 {[%clk 0:00:01]} 53. Qc4 {[%clk 0:00:33]} 1-0


[Site "https://www.chess.com"]

[Event "Titled Tuesday Blitz May 03 Early 2022"]
[White "Skliarov, Viktor"]
[Black "Ismagambetov, Anuar"]
[WhiteFideId "14106736"]
[BlackFideId "13701525"]
[WhiteElo "2229"]
[BlackElo "2487"]
[Result "1-0"]
[Round "08"]
[TimeControl "180+1"]
[Date "2022.05.03"]
[WhiteClock "0:00:09"]
[BlackClock "0:01:00"]

1. e4 {[%clk 0:03:00]}  c5 {[%clk 0:02:59]} 2. Nf3 {[%clk 0:03:00]}  Nc6 {[%clk 0:03:00]} 3. Bb5 {[%clk 0:03:00]}  g6 {[%clk 0:03:00]} 4. O-O {[%clk 0:03:01]}  Bg7 {[%clk 0:03:00]} 5. Re1 {[%clk 0:03:01]}  e5 {[%clk 0:03:00]} 6. Bxc6 {[%clk 0:03:01]}  dxc6 {[%clk 0:03:00]} 7. d3 {[%clk 0:03:01]}  f6 {[%clk 0:03:00]} 8. Be3 {[%clk 0:03:00]}  b6 {[%clk 0:02:58]} 9. Nbd2 {[%clk 0:02:58]}  Nh6 {[%clk 0:02:58]} 10. a3 {[%clk 0:02:58]}  O-O {[%clk 0:02:57]} 11. b4 {[%clk 0:02:58]}  cxb4 {[%clk 0:02:56]} 12. axb4 {[%clk 0:02:58]}  Be6 {[%clk 0:02:56]} 13. Ra6 {[%clk 0:02:42]}  Nf7 {[%clk 0:02:51]} 14. Qa1 {[%clk 0:02:41]}  Qb8 {[%clk 0:02:43]} 15. d4 {[%clk 0:02:20]}  Bc8 {[%clk 0:02:28]} 16. Ra3 {[%clk 0:02:18]}  exd4 {[%clk 0:02:06]} 17. Bxd4 {[%clk 0:02:13]}  Nd6 {[%clk 0:02:06]} 18. c4 {[%clk 0:02:00]}  Bg4 {[%clk 0:01:59]} 19. h3 {[%clk 0:01:56]}  Be6 {[%clk 0:01:56]} 20. e5 {[%clk 0:01:41]}  fxe5 {[%clk 0:01:47]} 21. Bxe5 {[%clk 0:01:17]}  Bxe5 {[%clk 0:01:46]} 22. Qxe5 {[%clk 0:01:11]}  Bf7 {[%clk 0:01:43]} 23. Qd4 {[%clk 0:00:32]}  Rd8 {[%clk 0:01:33]} 24. Qg4 {[%clk 0:00:29]}  Qc8 {[%clk 0:01:31]} 25. Ne5 {[%clk 0:00:25]}  Qxg4 {[%clk 0:01:29]} 26. hxg4 {[%clk 0:00:26]}  c5 {[%clk 0:01:24]} 27. bxc5 {[%clk 0:00:23]}  bxc5 {[%clk 0:01:24]} 28. Rea1 {[%clk 0:00:24]}  Nc8 {[%clk 0:01:17]} 29. Ne4 {[%clk 0:00:20]}  Re8 {[%clk 0:01:17]} 30. Nf6+ {[%clk 0:00:19]}  Kg7 {[%clk 0:01:18]} 31. Nxe8+ {[%clk 0:00:20]}  Bxe8 {[%clk 0:01:18]} 32. g5 {[%clk 0:00:19]}  Rb8 {[%clk 0:01:17]} 33. f4 {[%clk 0:00:14]}  Rb2 {[%clk 0:01:15]} 34. R3a2 {[%clk 0:00:12]}  Rb4 {[%clk 0:01:13]} 35. Rd2 {[%clk 0:00:12]}  Kf8 {[%clk 0:01:12]} 36. Rd8 {[%clk 0:00:11]}  Nb6 {[%clk 0:00:59]} 37. Rxa7 {[%clk 0:00:09]}  Nxc4 {[%clk 0:01:00]} 38. Rf7+ {[%clk 0:00:09]} 1-0


[Site "https://www.chess.com"]